Cogmind - Beta 11.1 @@@ ROGUE MODE // 2022.05.16 @ 14:17:41 Player: Jamuson Result: Destroyed by G-47 Trooper with Particle Gun Performance ------------- Evolutions (0) 0 Regions Visited (1) 200 Robots Destroyed (12) 60 Value Destroyed (335) 335 Prototype IDs (0) 0 Alien Tech Used (0) 0 Bonus (0) 0 TOTAL SCORE: 595 Bonus ------- None Cogmind --------- Core Integrity 0/250 Matter 300/300 Energy 110/125 System Corruption 0% Temperature Critical (686) Movement Core (200) Ox3 Location -10/Materials Parts ------- > --- POWER (1) -------- Light Ion Engine > --- PROPULSION (2) --- (None) > --- UTILITY (2) ------ Small Storage Unit > --- WEAPON (2) ------- Medium Laser > --- INVENTORY (8) ---- Light Treads Peak State ------------ > --- POWER ------------ Light Ion Engine > --- PROPULSION ------- Compact Wheel Compact Wheel > --- UTILITY ---------- Small Storage Unit > --- WEAPON ----------- Small Laser Light Assault Rifle > --- INVENTORY -------- Light Treads Light Treads [Rating: 6] Favorites ----------- Power Light Ion Engine Engine Light Ion Engine Propulsion Compact Wheel Treads Light Treads Wheel Compact Wheel Utility Small Storage Unit Storage Small Storage Unit Weapon Small Laser Energy Gun Small Laser Ballistic Gun Light Assault Rifle Build | -11 -10 ------- Run | Scr Mat Slots Evolved . | . . Power . | . . Propulsion . | . . Utility . | . . Weapon . | . . Parts Attached 10 | 6 4 Power 2 | 1 1 Engine 2 | 1 1 Core . | . . Reactor . | . . Propulsion 3 | 2 1 Treads 1 | . 1 Leg . | . . Wheel 2 | 2 . Hover . | . . Flight . | . . Utility 1 | 1 . Device . | . . Storage 1 | 1 . Processor . | . . Hackware . | . . Protection . | . . Artifact . | . . Weapon 4 | 2 2 Energy Gun 3 | 1 2 Energy Cannon . | . . Ballistic Gun 1 | 1 . Ballistic Cannon . | . . Launcher . | . . Special Weapon . | . . Impact Weapon . | . . Slashing Weapon . | . . Piercing Weapon . | . . Special Melee Weapon . | . . Unidentified Prototypes . | . . Parts Lost 7 | . 7 Power 1 | . 1 Propulsion 3 | . 3 Utility . | . . Weapon 3 | . 3 Highest Loss Streak 3 | . 3 To Critical Strikes . | . . Average Slot Usage (%) 73 | . 73 Engine 11 | . 11 Treads 1 | . 1 Wheel 22 | . 22 Storage 14 | . 14 Energy Gun 13 | . 13 Ballistic Gun 8 | . 8 Naked Turns . | . . Heaviest Build 12 | 10 12 Greatest Support 32 | 32 32 Greatest Overweight (x) 3 | . 3 Average Overweight (x) . | . . Largest Inventory Capacity 8 | 8 8 Average Capacity 7 | 6 8 Most Carried 3 | 3 3 Average Carried 2 | 1 2 Final Capacity 8 | 8 8 Final Carried 3 | 3 1 Class Distribution -------------------- 100% | Mutant Dominant Class ---------------- Mutant | -10/Materials Resources | -11 -10 ----------- Run | Scr Mat Matter Collected 314 | 204 110 Remotely . | . . Salvage Created 404 | . 404 Parts 26 | . 26 Haulers Intercepted 1 | . 1 Recyclers Shooed 1 | . 1 Parts Field Recycled . | . . Retrieved Matter . | . . Parts Self-Destructed . | . . Prevented . | . . Kills | -11 -10 ------- Run | Scr Mat Combat Hostiles Destroyed 8 | . 8 Guns 7 | . 7 Classes Destroyed 3 | . 3 Hauler 1 | . 1 Watcher 3 | . 3 Grunt 8 | . 8 Best Kill Streak 5 | . 5 Combat Bots Only 3 | . 3 Max Kills in Single Turn 1 | . 1 Gunslinging . | . . Exploded . | . . Melee . | . . Uniques/NPCs Destroyed . | . . Combat | -11 -10 -------- Run | Scr Mat Damage Taken 821 | . 821 Core 265 | . 265 Absorbed by Shields . | . . Core Remaining (%) 100 | 100 . Volleys Fired 54 | . 54 Largest 2 | . 2 Hottest 100 | . 100 Shots Fired 96 | . 96 Gun 96 | . 96 Cannon . | . . Launcher . | . . Special . | . . Kinetic 29 | . 29 Thermal 67 | . 67 Explosive . | . . Electromagnetic . | . . Robot Hit Streak 15 | . 15 Robot Miss Streak 2 | . 2 Penetration Max . | . . Secondary Targets . | . . Shots Hit Robots 68 | . 68 Core Hits 26 | . 26 Critical Kills . | . . Critical Parts Destroyed . | . . Critical Strikes 5 | . 5 Burn 5 | . 5 Melee Attacks . | . . Impact . | . . Slashing . | . . Piercing . | . . Sneak Attacks . | . . Combat Hostiles . | . . Follow-up Attacks . | . . Damage Inflicted 743 | . 743 Guns 733 | . 733 Cannons . | . . Explosions . | . . Melee . | . . Ramming 10 | . 10 Kinetic 191 | . 191 Thermal 542 | . 542 Explosive . | . . Electromagnetic . | . . Impact . | . . Slashing . | . . Piercing . | . . Highest Corruption . | . . Average Corruption . | . . Corruption Purged . | . . Corruption Blocked . | . . Overload Shots . | . . Overflow Damage . | . . Projectiles . | . . Explosions . | . . Melee . | . . Knockbacks . | . . Impact . | . . Kinetic . | . . Secondary . | . . Self-Inflicted Damage 4 | . 4 Shots . | . . Rammed 3 | . 3 Targets Rammed 3 | . 3 Kicked . | . . Crushed . | . . Highest Temperature 667 | . 667 Average Temperature 153 | . 153 Received Heat Transfer 498 | . 498 Effects 12 | . 12 Shutdowns 3 | . 3 Energy Bleed 3 | . 3 Short Circuit 1 | . 1 Damage (major) 5 | . 5 Siege Activations . | . . Robots Corrupted . | . . Combat Hostiles . | . . Parts Fried . | . . Impact Corruptions . | . . Robots Melted 1 | . 1 Combat Hostiles 1 | . 1 Parts Melted 2 | . 2 Heat Transferred 1808 | . 1808 Parts Sabotaged . | . . Parts Stolen . | . . Parts Stripped . | . . Power Chain Reactions . | . . Missiles Intercepted . | . . Alert | -11 -10 ------- Run | Scr Mat Peak Influence 221 | . 221 Initial . | . . Average 86 | . 95 Maximum Alert Level 1 | . 1 Low Security (%) 91 | 100 90 Level 1 8 | . 9 Level 2 . | . . Level 3 . | . . Level 4 . | . . Level 5 . | . . High Security . | . . Max Security . | . . Squads Dispatched 2 | . 2 Investigation . | . . Extermination . | . . Reinforcement 2 | . 2 Assault . | . . Garrison . | . . Intercept . | . . Searches Triggered . | . . Construction Impeded . | . . Haulers Reinforced . | . . Active Scanning Responses . | . . Cargo Convoy Interrupts . | . . Stealth | -11 -10 --------- Run | Scr Mat Distress Signals 1 | . 1 Communications Jammed . | . . Distress Signals . | . . Times Spotted 25 | . 25 Peak Tracking Total 8 | . 8 Tactical Retreats 2 | . 2 Traps | -11 -10 ------- Run | Scr Mat Traps Triggered . | . . Indirectly . | . . Trap Hack Attempts . | . . Triggered . | . . Disarmed . | . . Reprogrammed . | . . Reused . | . . Traps Extracted . | . . Installed . | . . Triggered . | . . Machines | -11 -10 ---------- Run | Scr Mat Machines Disabled . | . . Max in Single Turn . | . . Machines Sabotaged . | . . Garrisons Compromised . | . . Overloaded Fab Kills . | . . Hacking | -11 -10 --------- Run | Scr Mat Machines Accessed 2 | . 2 Terminals 2 | . 2 Fabricators . | . . Repair Stations . | . . Recycling Units . | . . Scanalyzers . | . . Garrison Access . | . . Total Hacks 7 | . 7 Successful 5 | . 5 Failed 2 | . 2 Catastrophic . | . . Database Lockouts . | . . Manual 5 | . 5 Terminals 7 | . 7 Fabricators . | . . Repair Stations . | . . Recycling Units . | . . Scanalyzers . | . . Garrison Access . | . . Terminal Hacks 3 | . 3 Robot Analysis 1 | . 1 Branch Access Points 1 | . 1 Terminal Index 1 | . 1 Fabricator Hacks . | . . Repair Station Hacks . | . . Recycling Unit Hacks . | . . Scanalyzer . | . . Garrison Access Hacks . | . . Unauthorized Hacks 2 | . 2 Terminals 2 | . 2 Botnet 2 | . 2 Fabricators . | . . Repair Stations . | . . Recycling Units . | . . Scanalyzers . | . . Garrison Access . | . . Data Cores Recovered . | . . Used . | . . Hacking Detections 2 | . 2 Full Trace Events 1 | . 1 Feedback Events . | . . Feedback Blocked . | . . Robot Schematics Acquired . | . . Robots Built . | . . Authchips . | . . Time . | . . Total Robot Build Rating . | . . Part Schematics Acquired . | . . Parts Built . | . . Authchips . | . . Time . | . . Total Part Build Rating . | . . Parts Repaired . | . . Time . | . . Parts Recycled . | . . Recycled Matter . | . . Retrieved Matter . | . . Retrieved Components . | . . Parts Scanalyzed . | . . Part Schematics Acquired . | . . Parts Damaged . | . . Bothacking | -11 -10 ------------ Run | Scr Mat Used RIF Installer . | . . Robots Hacked . | . . Non-combat . | . . Combat . | . . Robot Hacks Applied . | . . Relay Couplers Released . | . . Fabnet Peak Effective % . | . . Robots Rewired . | . . Allies Hacked . | . . Hacks Repelled . | . . Allies | -11 -10 -------- Run | Scr Mat Total Allies . | . . Largest Group . | . . Highest-Rated Group . | . . Highest-Rated Ally . | . . Total Orders . | . . Ally Attacks . | . . Total Damage . | . . Kills . | . . Allies Corrupted . | . . Allies Melted . | . . Intel | -11 -10 ------- Run | Scr Mat Robot Analysis Total 1 | . 1 Derelict Logs Recovered . | . . Drone Launches . | . . Drone Recoveries . | . . Exploration | -11 -10 ------------- Run | Scr Mat Turns Passed 569 | 56 513 Spaces Moved 389 | 46 343 Core 4 | 3 1 Treads 1 | . 1 Legs . | . . Wheels 384 | 43 341 Hover . | . . Flight . | . . Fastest Speed 50 | 50 100 Average Speed 100 | 96 100 Slowest Speed 200 | 100 200 Overloaded Moves . | . . Propulsion Burnouts . | . . Robots Hopped . | . . Cave-ins Triggered . | . . Exploration Rate (%) 30 | 4 56 Regions Visited 1 Branch Regions . Pre-discovered Areas . | . . Known Exits Taken . | . . Unknown Exits Taken 1 | 1 . Scrap Searched . | . . Spaces Dug . | . . Terrain Destroyed . | . . Melee . | . . Projectile . | . . AOE . | . . Terrain Rammed . | . . Walls Destroyed . | . . Machines Disabled . | . . Actions | -11 -10 --------- Run | Scr Mat Total 476 | 55 421 Wait 17 | . 17 Move 388 | 45 343 Hop . | . . Pick Up 4 | 4 . Fast Attach 7 | 5 2 Attach 3 | 1 2 Detach . | . . Swap . | . . Drop . | . . Fire 54 | . 54 Melee . | . . Ram 3 | . 3 Kick . | . . Crush . | . . Escape Stasis . | . . Rewire . | . . Trap . | . . Miscellaneous . | . . Route ------- -11/Scrapyard -10/Materials (discovered 3 exits: [*Mat x2] / Min) History --------- Turn | Location | Event 12 | -11/Scrapyard | Discovered new exit (range 15) 57 | -11/Scrapyard | Entered Materials 193 | -10/Materials | Discovered new exit (range 16) 305 | -10/Materials | Build established: Mutant 379 | -10/Materials | Identified exit to Mines 456 | -10/Materials | Core integrity fell below 50% 479 | -10/Materials | Lost 3 parts (1p1n1w) 479 | -10/Materials | Discovered new exit (range 16) 524 | -10/Materials | Core integrity fell below 20% 570 | -10/Materials | Destroyed by G-47 Trooper with Particle Gun Last Messages --------------- 00557_ K-01 Serf cleans the Terminal. 00558_ R-06 Scavenger collects Hover Unit. 00561_ K-01 Serf collects debris. 00562_ Overheating: Lgt. Treads damaged (-27). 00562_ Overheating: Med. Laser damaged (-42). 00564_ Med. Laser destroyed. 00564_ Critical hit (Burn: +37). 00564_ K-01 Serf collects debris. 00565_ Overheating: Energy bleed (-17). 00566_ Overheating: Energy bleed (-24). 00567_ Lgt. Treads destroyed. 00569_ Overheating: Sml. Storage Unit damaged (-54). 00569_ Overheating: Med. Laser damaged (-7). 00569_ Overheating: Lgt. Ion Engine damaged (-7). 00569_ Acquired 25 matter. 00570_ Power failure, Lgt. Ion Engine shutdown. 00570_ Med. Laser broken. 00570_ Overheating: Short circuit. 00570_ K-01 Serf collects debris. 00570_ Critical hit (Burn: +37). Map ----- +----------------------------------------------------+ | ????????????????????????????????????? | | ???????????????????? ???? ?????????? | | ???????????????????? ???? ?????????? | | ???????????????????? ???? ?????????? | | ???????????????????# #???/#####????? | | ???????????????????# #??? #????? | | ??????????##???##??# #???" #????? | | ??????????# #??# #??"" #????? | | ??????????# """ #??# # """ #????? | | ??????????# """ #??# # #????? | | ??????????# """ #??# # """ #????? | | ??????????# #??# # """ #????? | | ??????????# "T" #??# # """ #????? | | ??????????? ???# #?? ??????? | | #############/###### #####+####????? | | #????? | | < #????? | | #????? | | ###+### ##############+#######?? | | # ## #???????# ! #?? | | # ## #???????# [ #?? | | # ## #???????# ""T"" #?? | | # ## #???????# """"" #?? | | # ## ##??????# %! #?? | | # # ##+########/#########?? | | # # "" =!%u g @ + ! # | | # + T %!= ^ g # # | | # # k g g +????????? | | ###### ########## #????????? | | #????#######????????# #????????? | | #???????????????????# #????????? | | #???????????????????# % #????????? | | ##########??????????# #????????? | | # #??????????# #????????? | | # """ #??????????# #????????? | | # """"" #??????????# #????????? | | # """"" #??????????# #????????? | | + """"" #??????????+ +????????? | | # """ #??????????# #????????? | | # #??????????? #????????? | | # #??????????? ?????????? | | # #??????????? ?????????? | | ##########???????????????????????? | | #?????????????????????>??????????? | | #????????????????????????????????? | | #????????????????????????????????? | | #????????????????????????????????? | | ####????????????????????????????????? | | ????????????????????????????????????? | | ????????????????????????????????????? | +----------------------------------------------------+ Best States ------------- Heat Dissipation 25 Energy Generation 10 Energy Capacity 125 Matter Stores 300 Matter Capacity 300 Sight Range 16 Terrain Scan Density 10 Evasion (%) 40 Recoil Reduction 1 Item Schematics ----------------- None Robot Schematics ------------------ None Fabricated ------------ Nothing Alien Tech Used ----------------- None Achievements -------------- None Challenges ------------ None Game ------ Seed SubatomicAntigravWings Manual? 0 Play Time 00:11:02 Cumulative 161.8 hours Start 2022.05.16 @ 14:11:42 End 2022.05.16 @ 14:17:41 Sessions 1 Manual Loads 0 Difficulty Rogue Special Mode None Game No. 64 Rogue 57 Adventurer 0 Explorer 7 Win Type - Total 1 Types 0/0/1/0/0/0/0/0/0 Lore% 60 Gallery% 55 Achievement% 47 Wizard Run 0 Options --------- ASCII 0 Keyboard 0 Movement Mouse Keybinds 0 Fullscreen 1 Font 16/Cog Map View 76x50 Tactical HUD 1 Map Filters NONE Filters NONE Steam 1 RUN: dadbc59e-4161-43c4-bcc6-0050266f93e2